[Event "Titled Tuesday Blitz April 4 Late 2023"]
[White "Martins, Bruno Andre Leite"]
[Black "Santos Flores, Alberto"]
[WhiteFideId "1942255"]
[BlackFideId "3601234"]
[WhiteElo "2240"]
[BlackElo "2235"]
[Result "1-0"]
[Round "10"]
[TimeControl "180+2"]
[Date "2023.04.04"]
[WhiteClock "0:01:37"]
[BlackClock "0:01:29"]

1. e4 {[%clk 0:02:47]}  c5 {[%clk 0:02:59]} 2. Nf3 {[%clk 0:02:47]}  Nc6 {[%clk 0:02:59]} 3. d4 {[%clk 0:02:47]}  cxd4 {[%clk 0:03:00]} 4. Nxd4 {[%clk 0:02:48]}  g6 {[%clk 0:03:01]} 5. c4 {[%clk 0:02:47]}  Nf6 {[%clk 0:03:00]} 6. Nc3 {[%clk 0:02:47]}  d6 {[%clk 0:03:01]} 7. f3 {[%clk 0:02:45]}  Nxd4 {[%clk 0:03:00]} 8. Qxd4 {[%clk 0:02:46]}  Bg7 {[%clk 0:03:00]} 9. Be3 {[%clk 0:02:47]}  O-O {[%clk 0:03:00]} 10. Qd2 {[%clk 0:02:47]}  Be6 {[%clk 0:03:00]} 11. Rc1 {[%clk 0:02:47]}  Qa5 {[%clk 0:03:00]} 12. b3 {[%clk 0:02:47]}  Rfc8 {[%clk 0:03:00]} 13. Be2 {[%clk 0:02:41]}  a6 {[%clk 0:03:00]} 14. Nd5 {[%clk 0:02:40]}  Qxd2+ {[%clk 0:03:01]} 15. Kxd2 {[%clk 0:02:41]}  Nxd5 {[%clk 0:03:01]} 16. exd5 {[%clk 0:02:41]}  Bd7 {[%clk 0:03:01]} 17. a4 {[%clk 0:02:31]}  b5 {[%clk 0:02:42]} 18. cxb5 {[%clk 0:02:05]}  axb5 {[%clk 0:02:42]} 19. Rxc8+ {[%clk 0:02:05]}  Rxc8 {[%clk 0:02:42]} 20. Bxb5 {[%clk 0:01:56]}  Bxb5 {[%clk 0:02:37]} 21. axb5 {[%clk 0:01:56]}  Bc3+ {[%clk 0:02:13]} 22. Kd3 {[%clk 0:01:54]}  Bb4 {[%clk 0:02:13]} 23. Rc1 {[%clk 0:01:53]}  Rb8 {[%clk 0:01:55]} 24. b6 {[%clk 0:01:51]}  Kf8 {[%clk 0:01:45]} 25. Kc4 {[%clk 0:01:46]}  Bc5 {[%clk 0:01:40]} 26. Bxc5 {[%clk 0:01:44]}  dxc5 {[%clk 0:01:40]} 27. Kb5 {[%clk 0:01:41]}  Ke8 {[%clk 0:01:36]} 28. Kc6 {[%clk 0:01:38]}  Kd8 {[%clk 0:01:34]} 29. b7 {[%clk 0:01:37]}  e6 {[%clk 0:01:30]} 30. dxe6 {[%clk 0:01:36]}  fxe6 {[%clk 0:01:30]} 31. Rd1+ {[%clk 0:01:36]}  Ke7 {[%clk 0:01:29]} 32. Kc7 {[%clk 0:01:37]} 1-0


[Site "https://www.chess.com"]

[Event "Titled Tuesday Blitz April 4 Late 2023"]
[White "Averjanov, Alexey"]
[Black "Kukula, Pawel"]
[WhiteFideId "14109867"]
[BlackFideId "1115081"]
[WhiteElo "2619"]
[BlackElo "2012"]
[Result "1-0"]
[Round "10"]
[TimeControl "180+2"]
[Date "2023.04.04"]
[WhiteClock "0:01:23"]
[BlackClock "0:00:29"]

1. d4 {[%clk 0:03:00]}  Nf6 {[%clk 0:02:53]} 2. c4 {[%clk 0:03:00]}  Nc6 {[%clk 0:02:52]} 3. Nf3 {[%clk 0:03:00]}  e6 {[%clk 0:02:52]} 4. g3 {[%clk 0:03:00]}  Bb4+ {[%clk 0:02:52]} 5. Nbd2 {[%clk 0:02:59]}  a5 {[%clk 0:02:52]} 6. Bg2 {[%clk 0:02:59]}  O-O {[%clk 0:02:51]} 7. O-O {[%clk 0:02:59]}  Bxd2 {[%clk 0:02:50]} 8. Qxd2 {[%clk 0:02:59]}  d6 {[%clk 0:02:50]} 9. b3 {[%clk 0:02:59]}  Ne4 {[%clk 0:02:50]} 10. Qc2 {[%clk 0:02:58]}  f5 {[%clk 0:02:50]} 11. d5 {[%clk 0:02:54]}  Nb4 {[%clk 0:02:50]} 12. Qd1 {[%clk 0:02:52]}  e5 {[%clk 0:02:50]} 13. Bb2 {[%clk 0:02:50]}  Bd7 {[%clk 0:02:46]} 14. a3 {[%clk 0:02:50]}  Na6 {[%clk 0:02:46]} 15. Qc2 {[%clk 0:02:50]}  Nac5 {[%clk 0:02:42]} 16. b4 {[%clk 0:02:49]}  Ba4 {[%clk 0:02:42]} 17. Qb1 {[%clk 0:02:41]}  Nb3 {[%clk 0:02:42]} 18. Ra2 {[%clk 0:02:37]}  Nbd2 {[%clk 0:02:41]} 19. Nxd2 {[%clk 0:02:37]}  Nxd2 {[%clk 0:02:42]} 20. Qc1 {[%clk 0:02:36]}  Nxf1 {[%clk 0:02:42]} 21. Bxf1 {[%clk 0:02:36]}  f4 {[%clk 0:02:37]} 22. Ra1 {[%clk 0:02:32]}  axb4 {[%clk 0:02:36]} 23. axb4 {[%clk 0:02:32]}  Bd7 {[%clk 0:02:37]} 24. Bg2 {[%clk 0:02:29]}  Rxa1 {[%clk 0:02:36]} 25. Bxa1 {[%clk 0:02:26]}  b6 {[%clk 0:02:30]} 26. c5 {[%clk 0:02:26]}  bxc5 {[%clk 0:02:30]} 27. bxc5 {[%clk 0:02:26]}  fxg3 {[%clk 0:02:26]} 28. hxg3 {[%clk 0:02:26]}  Qf6 {[%clk 0:02:26]} 29. Qe3 {[%clk 0:02:25]}  Qg6 {[%clk 0:02:17]} 30. Kh2 {[%clk 0:02:22]}  Qh6+ {[%clk 0:02:09]} 31. Qxh6 {[%clk 0:02:22]}  gxh6 {[%clk 0:02:10]} 32. c6 {[%clk 0:02:21]}  Bc8 {[%clk 0:02:08]} 33. Kg1 {[%clk 0:02:21]}  Ba6 {[%clk 0:02:05]} 34. e3 {[%clk 0:02:21]}  Rb8 {[%clk 0:02:04]} 35. Bc3 {[%clk 0:02:21]}  Rb5 {[%clk 0:02:01]} 36. e4 {[%clk 0:02:19]}  Rc5 {[%clk 0:01:59]} 37. Bb4 {[%clk 0:02:19]}  Rb5 {[%clk 0:01:58]} 38. Bc3 {[%clk 0:02:19]}  Kf7 {[%clk 0:01:56]} 39. Kh2 {[%clk 0:02:19]}  Rc5 {[%clk 0:01:54]} 40. Bb4 {[%clk 0:02:18]}  Rb5 {[%clk 0:01:49]} 41. Bc3 {[%clk 0:02:19]}  Ke7 {[%clk 0:01:47]} 42. Bd2 {[%clk 0:02:08]}  Rb2 {[%clk 0:01:36]} 43. Be3 {[%clk 0:02:03]}  h5 {[%clk 0:01:32]} 44. Bh3 {[%clk 0:02:03]}  h6 {[%clk 0:01:23]} 45. Bd7 {[%clk 0:02:00]}  Be2 {[%clk 0:01:17]} 46. Bxh6 {[%clk 0:01:56]}  Bf3 {[%clk 0:01:13]} 47. Bg5+ {[%clk 0:01:55]}  Kf7 {[%clk 0:01:14]} 48. Bd8 {[%clk 0:01:50]}  Rb1 {[%clk 0:01:14]} 49. g4 {[%clk 0:01:48]}  hxg4 {[%clk 0:00:46]} 50. Kg3 {[%clk 0:01:47]}  Rg1+ {[%clk 0:00:45]} 51. Kh4 {[%clk 0:01:47]}  Kg6 {[%clk 0:00:43]} 52. Bf5+ {[%clk 0:01:46]}  Kf7 {[%clk 0:00:41]} 53. Bxc7 {[%clk 0:01:44]}  Rh1+ {[%clk 0:00:42]} 54. Kg5 {[%clk 0:01:44]}  Re1 {[%clk 0:00:38]} 55. Bxd6 {[%clk 0:01:41]}  Bxe4 {[%clk 0:00:38]} 56. c7 {[%clk 0:01:37]}  Bxf5 {[%clk 0:00:37]} 57. Kxf5 {[%clk 0:01:38]}  Rc1 {[%clk 0:00:37]} 58. Bxe5 {[%clk 0:01:38]}  Ke7 {[%clk 0:00:35]} 59. d6+ {[%clk 0:01:39]}  Kd7 {[%clk 0:00:36]} 60. Kxg4 {[%clk 0:01:39]}  Rc4+ {[%clk 0:00:36]} 61. f4 {[%clk 0:01:39]}  Ke6 {[%clk 0:00:35]} 62. Kg5 {[%clk 0:01:37]}  Kd7 {[%clk 0:00:34]} 63. f5 {[%clk 0:01:36]}  Rc5 {[%clk 0:00:34]} 64. Kf6 {[%clk 0:01:36]}  Rc1 {[%clk 0:00:33]} 65. Kg6 {[%clk 0:01:35]}  Rg1+ {[%clk 0:00:34]} 66. Kf7 {[%clk 0:01:35]}  Re1 {[%clk 0:00:34]} 67. Bg3 {[%clk 0:01:30]}  Rg1 {[%clk 0:00:33]} 68. Bh4 {[%clk 0:01:29]}  Rh1 {[%clk 0:00:31]} 69. Be7 {[%clk 0:01:28]}  Rf1 {[%clk 0:00:30]} 70. f6 {[%clk 0:01:29]}  Rc1 {[%clk 0:00:30]} 71. Kg7 {[%clk 0:01:27]}  Rg1+ {[%clk 0:00:30]} 72. Kf8 {[%clk 0:01:27]}  Rg2 {[%clk 0:00:30]} 73. f7 {[%clk 0:01:24]}  Rg1 {[%clk 0:00:30]} 74. c8=Q+ {[%clk 0:01:24]}  Kxc8 {[%clk 0:00:29]} 75. Ke8 {[%clk 0:01:24]}  Rf1 {[%clk 0:00:29]} 76. d7+ {[%clk 0:01:23]} 1-0


[Site "https://www.chess.com"]

[Event "Titled Tuesday Blitz April 4 Late 2023"]
[White "Vlassov, Nikolai"]
[Black "Mazurkiewicz, Michal"]
[WhiteFideId "4103360"]
[BlackFideId "1124943"]
[WhiteElo "2324"]
[BlackElo "2054"]
[Result "1-0"]
[Round "10"]
[TimeControl "180+2"]
[Date "2023.04.04"]
[WhiteClock "0:00:53"]
[BlackClock "0:00:01"]

1. g4 {[%clk 0:03:00]}  e5 {[%clk 0:02:58]} 2. Bg2 {[%clk 0:03:00]}  d5 {[%clk 0:02:58]} 3. d4 {[%clk 0:03:00]}  e4 {[%clk 0:02:58]} 4. c4 {[%clk 0:03:00]}  c6 {[%clk 0:02:58]} 5. Nc3 {[%clk 0:03:00]}  Bb4 {[%clk 0:02:49]} 6. Qb3 {[%clk 0:02:59]}  Bxc3+ {[%clk 0:02:43]} 7. bxc3 {[%clk 0:02:59]}  Qb6 {[%clk 0:02:42]} 8. cxd5 {[%clk 0:02:57]}  Qxb3 {[%clk 0:02:42]} 9. axb3 {[%clk 0:02:57]}  cxd5 {[%clk 0:02:42]} 10. c4 {[%clk 0:02:57]}  Bxg4 {[%clk 0:02:39]} 11. cxd5 {[%clk 0:02:58]}  Nf6 {[%clk 0:02:39]} 12. Bg5 {[%clk 0:02:55]}  Nbd7 {[%clk 0:02:39]} 13. f3 {[%clk 0:02:50]}  exf3 {[%clk 0:02:37]} 14. Nxf3 {[%clk 0:02:51]}  h6 {[%clk 0:02:35]} 15. Bxf6 {[%clk 0:02:44]}  Nxf6 {[%clk 0:02:36]} 16. Ne5 {[%clk 0:02:43]}  Bf5 {[%clk 0:02:32]} 17. d6 {[%clk 0:02:42]}  Rd8 {[%clk 0:02:27]} 18. Bxb7 {[%clk 0:02:37]}  Rxd6 {[%clk 0:02:26]} 19. Bc6+ {[%clk 0:02:35]}  Rxc6 {[%clk 0:02:13]} 20. Nxc6 {[%clk 0:02:28]}  Be4 {[%clk 0:02:13]} 21. Rg1 {[%clk 0:02:25]}  Bxc6 {[%clk 0:02:09]} 22. Rxg7 {[%clk 0:02:24]}  Kf8 {[%clk 0:01:52]} 23. Rg3 {[%clk 0:02:23]}  Ne4 {[%clk 0:01:05]} 24. Rg1 {[%clk 0:02:19]}  Ke7 {[%clk 0:00:45]} 25. Rxa7+ {[%clk 0:02:17]}  Ke6 {[%clk 0:00:46]} 26. e3 {[%clk 0:02:03]}  Rb8 {[%clk 0:00:43]} 27. Ra6 {[%clk 0:01:55]}  Kd5 {[%clk 0:00:09]} 28. Ra5+ {[%clk 0:01:55]}  Kd6 {[%clk 0:00:09]} 29. Rg7 {[%clk 0:01:46]}  Rxb3 {[%clk 0:00:08]} 30. Rxf7 {[%clk 0:01:44]}  Bb5 {[%clk 0:00:08]} 31. Kd1 {[%clk 0:01:31]}  Bd3 {[%clk 0:00:09]} 32. Ra1 {[%clk 0:01:30]}  Rb2 {[%clk 0:00:06]} 33. Rfa7 {[%clk 0:01:06]}  Nc3+ {[%clk 0:00:05]} 34. Ke1 {[%clk 0:01:05]}  Rxh2 {[%clk 0:00:05]} 35. R1a3 {[%clk 0:01:00]}  Re2+ {[%clk 0:00:04]} 36. Kf1 {[%clk 0:00:59]}  Rc2+ {[%clk 0:00:04]} 37. Kg1 {[%clk 0:00:58]}  Ne2+ {[%clk 0:00:03]} 38. Kf2 {[%clk 0:00:56]}  Nxd4+ {[%clk 0:00:03]} 39. Kg3 {[%clk 0:00:56]}  Nf5+ {[%clk 0:00:02]} 40. Kf4 {[%clk 0:00:56]}  Rf2+ {[%clk 0:00:02]} 41. Kg4 {[%clk 0:00:57]}  Be4 {[%clk 0:00:02]} 42. R3a6+ {[%clk 0:00:56]}  Kc5 {[%clk 0:00:02]} 43. Ra5+ {[%clk 0:00:56]}  Kb4 {[%clk 0:00:03]} 44. Re5 {[%clk 0:00:54]}  Bc2 {[%clk 0:00:01]} 45. Rb7+ {[%clk 0:00:53]} 1-0


[Site "https://www.chess.com"]

[Event "Titled Tuesday Blitz April 4 Late 2023"]
[White "Hajiyev, Kanan"]
[Black "Janaszak, Dawid"]
[WhiteFideId "13404148"]
[BlackFideId "1119206"]
[WhiteElo "2103"]
[BlackElo "2220"]
[Result "0-1"]
[Round "10"]
[TimeControl "180+2"]
[Date "2023.04.04"]
[WhiteClock "0:00:04"]
[BlackClock "0:00:16"]

1. d4 {[%clk 0:02:45]}  d5 {[%clk 0:02:57]} 2. Nf3 {[%clk 0:02:46]}  c5 {[%clk 0:02:57]} 3. c4 {[%clk 0:02:45]}  e6 {[%clk 0:02:57]} 4. cxd5 {[%clk 0:02:45]}  exd5 {[%clk 0:02:56]} 5. Nc3 {[%clk 0:02:46]}  Nc6 {[%clk 0:02:56]} 6. g3 {[%clk 0:02:45]}  Nf6 {[%clk 0:02:53]} 7. Bg2 {[%clk 0:02:43]}  cxd4 {[%clk 0:02:53]} 8. Nxd4 {[%clk 0:02:42]}  Bc5 {[%clk 0:02:54]} 9. Be3 {[%clk 0:02:05]}  Be7 {[%clk 0:02:49]} 10. O-O {[%clk 0:02:01]}  O-O {[%clk 0:02:48]} 11. Nxc6 {[%clk 0:01:57]}  bxc6 {[%clk 0:02:48]} 12. Na4 {[%clk 0:01:58]}  Ne4 {[%clk 0:02:35]} 13. Rc1 {[%clk 0:01:55]}  Bd7 {[%clk 0:02:29]} 14. Nc5 {[%clk 0:01:50]}  Bxc5 {[%clk 0:02:23]} 15. Bxc5 {[%clk 0:01:49]}  Re8 {[%clk 0:02:24]} 16. e3 {[%clk 0:01:28]}  a5 {[%clk 0:02:19]} 17. b3 {[%clk 0:01:21]}  Qf6 {[%clk 0:02:18]} 18. Qd4 {[%clk 0:01:15]}  Qg6 {[%clk 0:02:13]} 19. Ba3 {[%clk 0:01:05]}  h5 {[%clk 0:02:14]} 20. Bb2 {[%clk 0:01:05]}  h4 {[%clk 0:02:14]} 21. f3 {[%clk 0:00:31]}  h3 {[%clk 0:01:46]} 22. fxe4 {[%clk 0:00:11]}  hxg2 {[%clk 0:01:47]} 23. Rf4 {[%clk 0:00:08]}  Bh3 {[%clk 0:01:34]} 24. exd5 {[%clk 0:00:08]}  cxd5 {[%clk 0:01:34]} 25. Rc6 {[%clk 0:00:07]}  f6 {[%clk 0:01:34]} 26. Rc7 {[%clk 0:00:07]}  Rad8 {[%clk 0:01:20]} 27. Rh4 {[%clk 0:00:07]}  Qf5 {[%clk 0:01:13]} 28. Rf4 {[%clk 0:00:07]}  Qb1+ {[%clk 0:01:10]} 29. Rc1 {[%clk 0:00:06]}  Qxa2 {[%clk 0:01:04]} 30. Rh4 {[%clk 0:00:06]}  Bf5 {[%clk 0:00:53]} 31. Rc7 {[%clk 0:00:06]}  Re5 {[%clk 0:00:42]} 32. Kxg2 {[%clk 0:00:04]}  Qxb3 {[%clk 0:00:37]} 33. Rf4 {[%clk 0:00:02]}  Be6 {[%clk 0:00:31]} 34. Rf2 {[%clk 0:00:02]}  a4 {[%clk 0:00:23]} 35. Qa7 {[%clk 0:00:03]}  Rg5 {[%clk 0:00:19]} 36. h4 {[%clk 0:00:03]}  Rg6 {[%clk 0:00:17]} 37. Bd4 {[%clk 0:00:04]}  Qd3 {[%clk 0:00:15]} 38. h5 {[%clk 0:00:05]}  Qe4+ {[%clk 0:00:15]} 39. Kh2 {[%clk 0:00:04]}  Rg5 {[%clk 0:00:16]} 40. h6 {[%clk 0:00:04]}  Rh5+ {[%clk 0:00:16]} 0-1


[Site "https://www.chess.com"]

[Event "Titled Tuesday Blitz April 4 Late 2023"]
[White "Liu, Casper"]
[Black "Omelja, Artem"]
[WhiteFideId "1454153"]
[BlackFideId "14119846"]
[WhiteElo "2221"]
[BlackElo "2404"]
[Result "1-0"]
[Round "10"]
[TimeControl "180+2"]
[Date "2023.04.04"]
[WhiteClock "0:00:43"]
[BlackClock "0:00:17"]

1. d4 {[%clk 0:03:00]}  a5 {[%clk 0:02:51]} 2. e4 {[%clk 0:02:59]}  h6 {[%clk 0:02:51]} 3. Nf3 {[%clk 0:02:58]}  g5 {[%clk 0:02:50]} 4. h4 {[%clk 0:02:58]}  g4 {[%clk 0:02:50]} 5. Ne5 {[%clk 0:02:49]}  h5 {[%clk 0:02:50]} 6. Bc4 {[%clk 0:02:45]}  e6 {[%clk 0:02:49]} 7. f3 {[%clk 0:02:43]}  d6 {[%clk 0:02:49]} 8. Nd3 {[%clk 0:02:43]}  Be7 {[%clk 0:02:48]} 9. Nf2 {[%clk 0:01:56]}  Bxh4 {[%clk 0:02:35]} 10. Nc3 {[%clk 0:01:47]}  Nc6 {[%clk 0:02:28]} 11. Be3 {[%clk 0:01:47]}  Bg5 {[%clk 0:02:15]} 12. Nxg4 {[%clk 0:01:42]}  Bxe3 {[%clk 0:02:14]} 13. Nxe3 {[%clk 0:01:43]}  Qg5 {[%clk 0:02:13]} 14. Kf2 {[%clk 0:01:43]}  Nf6 {[%clk 0:02:13]} 15. Ne2 {[%clk 0:01:36]}  e5 {[%clk 0:02:12]} 16. c3 {[%clk 0:01:31]}  h4 {[%clk 0:02:10]} 17. Qb3 {[%clk 0:01:23]}  Rf8 {[%clk 0:02:02]} 18. Rag1 {[%clk 0:01:24]}  Bd7 {[%clk 0:01:54]} 19. g3 {[%clk 0:01:19]}  h3 {[%clk 0:01:53]} 20. Qxb7 {[%clk 0:01:15]}  Rb8 {[%clk 0:01:53]} 21. Qxc7 {[%clk 0:01:15]}  Rxb2 {[%clk 0:01:52]} 22. Rb1 {[%clk 0:01:12]}  Rxb1 {[%clk 0:01:42]} 23. Rxb1 {[%clk 0:01:13]}  h2 {[%clk 0:01:27]} 24. Bb5 {[%clk 0:00:57]}  Nd8 {[%clk 0:01:20]} 25. Nd5 {[%clk 0:00:57]}  Rh8 {[%clk 0:01:01]} 26. Qxd6 {[%clk 0:00:47]}  Ne6 {[%clk 0:00:17]} 27. Qe7# {[%clk 0:00:43]} 1-0


[Site "https://www.chess.com"]

[Event "Titled Tuesday Blitz April 4 Late 2023"]
[White "ArchibaldCerveza29"]
[Black "Kim, Sergey"]
[BlackFideId "13700570"]
[WhiteElo "2427"]
[BlackElo "2517"]
[Result "0-1"]
[Round "10"]
[TimeControl "180+2"]
[Date "2023.04.04"]
[WhiteClock "0:00:05"]
[BlackClock "0:00:37"]

1. e4 {[%clk 0:03:00]}  e5 {[%clk 0:02:59]} 2. Nf3 {[%clk 0:03:00]}  Nc6 {[%clk 0:02:59]} 3. d4 {[%clk 0:03:00]}  exd4 {[%clk 0:02:59]} 4. Bc4 {[%clk 0:03:01]}  Nf6 {[%clk 0:02:58]} 5. O-O {[%clk 0:03:01]}  Nxe4 {[%clk 0:02:58]} 6. Nc3 {[%clk 0:03:01]}  Nxc3 {[%clk 0:02:56]} 7. bxc3 {[%clk 0:03:01]}  d5 {[%clk 0:02:57]} 8. Bb5 {[%clk 0:03:01]}  Be7 {[%clk 0:02:56]} 9. cxd4 {[%clk 0:03:01]}  O-O {[%clk 0:02:56]} 10. Re1 {[%clk 0:03:02]}  Bg4 {[%clk 0:02:52]} 11. c3 {[%clk 0:03:00]}  Bd6 {[%clk 0:02:51]} 12. h3 {[%clk 0:03:00]}  Bh5 {[%clk 0:02:51]} 13. Rb1 {[%clk 0:03:00]}  Qf6 {[%clk 0:02:45]} 14. Be2 {[%clk 0:02:58]}  b6 {[%clk 0:02:37]} 15. Qb3 {[%clk 0:02:52]}  Bg6 {[%clk 0:02:23]} 16. Rb2 {[%clk 0:02:43]}  Be4 {[%clk 0:02:20]} 17. Ng5 {[%clk 0:02:22]}  Na5 {[%clk 0:02:13]} 18. Qa4 {[%clk 0:02:12]}  Bg6 {[%clk 0:02:09]} 19. Bb5 {[%clk 0:01:58]}  h6 {[%clk 0:02:03]} 20. Nf3 {[%clk 0:01:59]}  Be4 {[%clk 0:02:02]} 21. Be2 {[%clk 0:01:34]}  Rae8 {[%clk 0:01:56]} 22. Be3 {[%clk 0:01:34]}  Nc4 {[%clk 0:01:48]} 23. Bxc4 {[%clk 0:01:31]}  dxc4 {[%clk 0:01:48]} 24. Nd2 {[%clk 0:01:24]}  Bd5 {[%clk 0:01:45]} 25. Nxc4 {[%clk 0:01:08]}  Qg6 {[%clk 0:01:41]} 26. f4 {[%clk 0:01:08]}  Bxf4 {[%clk 0:01:34]} 27. Ne5 {[%clk 0:00:29]}  Qg3 {[%clk 0:01:24]} 28. Qd1 {[%clk 0:00:07]}  Qh2+ {[%clk 0:01:17]} 29. Kf1 {[%clk 0:00:08]}  Bxe3 {[%clk 0:01:04]} 30. Rxe3 {[%clk 0:00:07]}  Qh1+ {[%clk 0:01:04]} 31. Ke2 {[%clk 0:00:07]}  Qxg2+ {[%clk 0:01:02]} 32. Kd3 {[%clk 0:00:07]}  Qxb2 {[%clk 0:01:00]} 33. Qg4 {[%clk 0:00:06]}  f6 {[%clk 0:00:48]} 34. Rg3 {[%clk 0:00:05]}  Re7 {[%clk 0:00:43]} 35. Ng6 {[%clk 0:00:05]}  Qb1+ {[%clk 0:00:39]} 36. Kd2 {[%clk 0:00:05]}  Qxa2+ {[%clk 0:00:38]} 37. Kd3 {[%clk 0:00:05]}  Bc4# {[%clk 0:00:37]} 0-1


[Site "https://www.chess.com"]

[Event "Titled Tuesday Blitz April 4 Late 2023"]
[White "Kielinkei"]
[Black "Goffredo_Fofi"]
[WhiteElo "2419"]
[BlackElo "2498"]
[Result "1/2-1/2"]
[Round "10"]
[TimeControl "180+2"]
[Date "2023.04.04"]
[WhiteClock "0:00:33"]
[BlackClock "0:00:20"]

1. Nf3 {[%clk 0:03:00]}  Nf6 {[%clk 0:03:00]} 2. g3 {[%clk 0:03:00]}  g6 {[%clk 0:03:00]} 3. Bg2 {[%clk 0:03:01]}  Bg7 {[%clk 0:03:01]} 4. d4 {[%clk 0:03:01]}  O-O {[%clk 0:03:02]} 5. O-O {[%clk 0:03:02]}  d6 {[%clk 0:03:02]} 6. c4 {[%clk 0:03:02]}  c6 {[%clk 0:03:03]} 7. Nc3 {[%clk 0:03:03]}  Bf5 {[%clk 0:03:03]} 8. Nh4 {[%clk 0:02:58]}  Be6 {[%clk 0:03:01]} 9. d5 {[%clk 0:02:54]}  cxd5 {[%clk 0:02:57]} 10. cxd5 {[%clk 0:02:55]}  Bd7 {[%clk 0:02:57]} 11. Nf3 {[%clk 0:02:54]}  Na6 {[%clk 0:02:55]} 12. Be3 {[%clk 0:02:40]}  Ng4 {[%clk 0:02:07]} 13. Bd4 {[%clk 0:02:39]}  Bxd4 {[%clk 0:02:08]} 14. Qxd4 {[%clk 0:02:38]}  Qb6 {[%clk 0:02:07]} 15. Qxb6 {[%clk 0:02:25]}  axb6 {[%clk 0:02:08]} 16. h3 {[%clk 0:02:22]}  Nf6 {[%clk 0:01:57]} 17. Nd4 {[%clk 0:02:22]}  Rfc8 {[%clk 0:01:55]} 18. Rfc1 {[%clk 0:02:19]}  Rc5 {[%clk 0:01:49]} 19. Nb3 {[%clk 0:02:13]}  Rc4 {[%clk 0:01:46]} 20. e3 {[%clk 0:02:01]}  Nb4 {[%clk 0:01:39]} 21. Bf1 {[%clk 0:01:58]}  Rcc8 {[%clk 0:01:29]} 22. e4 {[%clk 0:01:56]}  Rc7 {[%clk 0:01:15]} 23. a3 {[%clk 0:01:54]}  Na6 {[%clk 0:01:15]} 24. Nd4 {[%clk 0:01:43]}  Rac8 {[%clk 0:01:12]} 25. f3 {[%clk 0:01:31]}  e5 {[%clk 0:01:03]} 26. Nb3 {[%clk 0:01:25]}  Nc5 {[%clk 0:00:53]} 27. Nxc5 {[%clk 0:01:26]}  Rxc5 {[%clk 0:00:54]} 28. Ne2 {[%clk 0:01:25]}  Nh5 {[%clk 0:00:46]} 29. Rxc5 {[%clk 0:01:16]}  Rxc5 {[%clk 0:00:47]} 30. Kf2 {[%clk 0:01:02]}  Rc2 {[%clk 0:00:41]} 31. Rc1 {[%clk 0:00:58]}  Rxb2 {[%clk 0:00:41]} 32. Rc7 {[%clk 0:00:59]}  Bb5 {[%clk 0:00:37]} 33. Rxb7 {[%clk 0:00:58]}  Bxe2 {[%clk 0:00:33]} 34. Bxe2 {[%clk 0:00:58]}  Kf8 {[%clk 0:00:33]} 35. a4 {[%clk 0:00:48]}  Nxg3 {[%clk 0:00:22]} 36. Kxg3 {[%clk 0:00:49]}  Rxe2 {[%clk 0:00:22]} 37. Rxb6 {[%clk 0:00:50]}  Ke7 {[%clk 0:00:23]} 38. Rb7+ {[%clk 0:00:45]}  Ke8 {[%clk 0:00:20]} 39. a5 {[%clk 0:00:34]}  Ra2 {[%clk 0:00:20]} 40. Ra7 {[%clk 0:00:35]}  h5 {[%clk 0:00:18]} 41. h4 {[%clk 0:00:33]}  Ra3 {[%clk 0:00:19]} 42. Ra6 {[%clk 0:00:31]}  Ke7 {[%clk 0:00:18]} 43. Ra7+ {[%clk 0:00:32]}  Ke8 {[%clk 0:00:19]} 44. Ra6 {[%clk 0:00:32]}  Ke7 {[%clk 0:00:20]} 45. Ra7+ {[%clk 0:00:33]}  Ke8 {[%clk 0:00:20]} 1/2-1/2


[Site "https://www.chess.com"]

[Event "Titled Tuesday Blitz April 4 Late 2023"]
[White "Pires, Marcos Vinicius Torsani"]
[Black "Skaric, Djuro"]
[WhiteFideId "2118939"]
[BlackFideId "934569"]
[WhiteElo "2273"]
[BlackElo "2282"]
[Result "0-1"]
[Round "10"]
[TimeControl "180+2"]
[Date "2023.04.04"]
[WhiteClock "0:00:18"]
[BlackClock "0:01:06"]

1. d4 {[%clk 0:03:00]}  d6 {[%clk 0:03:00]} 2. Bf4 {[%clk 0:02:59]}  g6 {[%clk 0:03:01]} 3. Nc3 {[%clk 0:02:58]}  Bg7 {[%clk 0:03:02]} 4. Qd2 {[%clk 0:02:58]}  Nf6 {[%clk 0:03:02]} 5. Bh6 {[%clk 0:02:58]}  O-O {[%clk 0:03:02]} 6. h4 {[%clk 0:02:57]}  Nc6 {[%clk 0:02:55]} 7. O-O-O {[%clk 0:02:47]}  e5 {[%clk 0:02:53]} 8. d5 {[%clk 0:02:36]}  Ne7 {[%clk 0:02:51]} 9. h5 {[%clk 0:02:34]}  Nxh5 {[%clk 0:02:50]} 10. Rxh5 {[%clk 0:02:20]}  gxh5 {[%clk 0:02:48]} 11. Qg5 {[%clk 0:02:07]}  Ng6 {[%clk 0:02:44]} 12. Qxh5 {[%clk 0:02:07]}  Bxh6+ {[%clk 0:02:34]} 13. Qxh6 {[%clk 0:02:07]}  Qf6 {[%clk 0:02:30]} 14. Nh3 {[%clk 0:01:49]}  Qh4 {[%clk 0:02:24]} 15. Qd2 {[%clk 0:01:31]}  a6 {[%clk 0:02:22]} 16. g3 {[%clk 0:01:25]}  Qh5 {[%clk 0:02:16]} 17. Bg2 {[%clk 0:01:16]}  Bxh3 {[%clk 0:02:05]} 18. Rh1 {[%clk 0:01:15]}  Qf5 {[%clk 0:01:57]} 19. Bxh3 {[%clk 0:01:08]}  Qf6 {[%clk 0:01:57]} 20. Ne4 {[%clk 0:01:05]}  Qg7 {[%clk 0:01:57]} 21. Bf5 {[%clk 0:01:04]}  f6 {[%clk 0:01:52]} 22. Qe3 {[%clk 0:00:55]}  Rae8 {[%clk 0:01:50]} 23. Qf3 {[%clk 0:00:55]}  Re7 {[%clk 0:01:50]} 24. e3 {[%clk 0:00:51]}  Kf7 {[%clk 0:01:40]} 25. g4 {[%clk 0:00:42]}  Ke8 {[%clk 0:01:40]} 26. Qe2 {[%clk 0:00:40]}  Kd8 {[%clk 0:01:34]} 27. Qc4 {[%clk 0:00:40]}  Ree8 {[%clk 0:01:32]} 28. Qb4 {[%clk 0:00:35]}  b6 {[%clk 0:01:28]} 29. Qc4 {[%clk 0:00:31]}  Ne7 {[%clk 0:01:27]} 30. Be6 {[%clk 0:00:27]}  f5 {[%clk 0:01:21]} 31. gxf5 {[%clk 0:00:24]}  Nxf5 {[%clk 0:01:21]} 32. Qxa6 {[%clk 0:00:19]}  Rxe6 {[%clk 0:01:07]} 33. dxe6 {[%clk 0:00:18]}  Ke7 {[%clk 0:01:07]} 34. Qb7 {[%clk 0:00:17]}  Kxe6 {[%clk 0:01:07]} 35. Qxc7 {[%clk 0:00:18]}  Qxc7 {[%clk 0:01:06]} 0-1


[Site "https://www.chess.com"]